[Event "*** Titled Tuesday Blitz"]
[Site "Chess.com"]
[Date "2021.03.02"]
[Round "10"]
[White "DenLaz"]
[Black "1977Ivan"]
[Result "1/2-1/2"]
[WhiteElo "2859"]
[BlackElo "2802"]
[TimeControl "180+1"]
[EndTime "11:58:26 PST"]
[Termination "Game drawn by repetition"]

1. d4 {[%clk 0:03:00.9]} 1... Nf6 {[%clk 0:02:59.1]} 2. c4 {[%clk 0:03:01.4]}
2... c5 {[%clk 0:02:59.7]} 3. d5 {[%clk 0:03:01.5]} 3... g6 {[%clk 0:03:00.2]}
4. Nc3 {[%clk 0:03:01.4]} 4... Bg7 {[%clk 0:03:00.8]} 5. e4 {[%clk 0:03:02.1]}
5... d6 {[%clk 0:03:01.1]} 6. h3 {[%clk 0:03:02]} 6... O-O {[%clk 0:03:01.5]} 7.
Bd3 {[%clk 0:03:02.6]} 7... e6 {[%clk 0:02:58.2]} 8. Nf3 {[%clk 0:03:02.5]} 8...
Nbd7 {[%clk 0:02:57.3]} 9. O-O {[%clk 0:03:00.2]} 9... e5 {[%clk 0:02:56.6]} 10.
g4 {[%clk 0:02:49.1]} 10... h5 {[%clk 0:02:53.7]} 11. Nh2 {[%clk 0:02:45.3]}
11... hxg4 {[%clk 0:02:50.5]} 12. hxg4 {[%clk 0:02:46.2]} 12... Nh7 {[%clk
0:02:50.6]} 13. f3 {[%clk 0:02:40.1]} 13... Bf6 {[%clk 0:02:42.1]} 14. Bh6
{[%clk 0:02:38.7]} 14... Bg5 {[%clk 0:02:39.5]} 15. Bxf8 {[%clk 0:02:38.4]}
15... Qxf8 {[%clk 0:02:38.6]} 16. Kg2 {[%clk 0:02:35.3]} 16... Ndf6 {[%clk
0:02:36.2]} 17. Rh1 {[%clk 0:02:35.2]} 17... Bd7 {[%clk 0:02:31.6]} 18. Nf1
{[%clk 0:02:34.2]} 18... a6 {[%clk 0:02:27.5]} 19. Qe2 {[%clk 0:02:33.2]} 19...
Qe7 {[%clk 0:02:19.2]} 20. a3 {[%clk 0:02:30.4]} 20... Kg7 {[%clk 0:02:08.6]}
21. b4 {[%clk 0:02:29.1]} 21... b6 {[%clk 0:02:08.4]} 22. Nd2 {[%clk 0:02:28.6]}
22... Bf4 {[%clk 0:02:07.3]} 23. Nb3 {[%clk 0:02:21.5]} 23... Ng5 {[%clk
0:02:05.9]} 24. Qf2 {[%clk 0:02:00.9]} 24... Nxf3 {[%clk 0:01:58.5]} 25. Qxf3
{[%clk 0:01:58.2]} 25... Nxg4 {[%clk 0:01:52.8]} 26. Rag1 {[%clk 0:01:19.2]}
26... cxb4 {[%clk 0:01:32.9]} 27. axb4 {[%clk 0:01:16.7]} 27... a5 {[%clk
0:01:33.1]} 28. b5 {[%clk 0:01:10.9]} 28... a4 {[%clk 0:01:30.2]} 29. Na1 {[%clk
0:01:11]} 29... Be3 {[%clk 0:01:01.2]} 30. Nc2 {[%clk 0:00:27]} 30... Bc5 {[%clk
0:00:58.1]} 31. Qg3 {[%clk 0:00:22.9]} 31... Qg5 {[%clk 0:00:53.3]} 32. Ne2
{[%clk 0:00:22.3]} 32... Bxg1 {[%clk 0:00:45.3]} 33. Rxg1 {[%clk 0:00:19.5]}
33... Rh8 {[%clk 0:00:39.3]} 34. Rh1 {[%clk 0:00:16.8]} 34... Rxh1 {[%clk
0:00:38.7]} 35. Kxh1 {[%clk 0:00:17.7]} 35... Qd2 {[%clk 0:00:38.9]} 36. Kg1
{[%clk 0:00:13.9]} 36... Qd1+ {[%clk 0:00:25.6]} 37. Kg2 {[%clk 0:00:12.7]}
37... Qd2 {[%clk 0:00:24.7]} 38. Kg1 {[%clk 0:00:12.8]} 38... Qd1+ {[%clk
0:00:19.6]} 39. Kg2 {[%clk 0:00:13]} 39... Qd2 {[%clk 0:00:20.1]} 40. Kg1 {[%clk
0:00:13.5]} 1/2-1/2

[Event "*** Titled Tuesday Blitz"]
[Site "Chess.com"]
[Date "2021.03.02"]
[Round "10"]
[White "Legendinunknown"]
[Black "AlexeiShirov"]
[Result "0-1"]
[WhiteElo "2630"]
[BlackElo "2828"]
[TimeControl "180+1"]
[EndTime "11:58:29 PST"]
[Termination "AlexeiShirov won by resignation"]

1. d4 {[%clk 0:03:00.9]} 1... d5 {[%clk 0:02:59.9]} 2. c4 {[%clk 0:02:59]} 2...
c6 {[%clk 0:02:59.8]} 3. Nf3 {[%clk 0:02:58.3]} 3... Nf6 {[%clk 0:02:58.9]} 4.
Nc3 {[%clk 0:02:58.3]} 4... e6 {[%clk 0:02:58.1]} 5. Bg5 {[%clk 0:02:57.2]} 5...
dxc4 {[%clk 0:02:56.7]} 6. e4 {[%clk 0:02:54.7]} 6... b5 {[%clk 0:02:56.5]} 7.
e5 {[%clk 0:02:54.8]} 7... h6 {[%clk 0:02:56.6]} 8. Bh4 {[%clk 0:02:54.9]} 8...
g5 {[%clk 0:02:56.8]} 9. Nxg5 {[%clk 0:02:55.3]} 9... hxg5 {[%clk 0:02:56.9]}
10. Bxg5 {[%clk 0:02:56.2]} 10... Nbd7 {[%clk 0:02:57]} 11. g3 {[%clk
0:02:56.3]} 11... Bb7 {[%clk 0:02:57.6]} 12. Bg2 {[%clk 0:02:55]} 12... Qb6
{[%clk 0:02:58.2]} 13. exf6 {[%clk 0:02:54.7]} 13... O-O-O {[%clk 0:02:58.7]}
14. O-O {[%clk 0:02:54.5]} 14... c5 {[%clk 0:02:59.2]} 15. d5 {[%clk 0:02:54.9]}
15... b4 {[%clk 0:02:57.8]} 16. Na4 {[%clk 0:02:55.1]} 16... Qa6 {[%clk
0:02:57.6]} 17. a3 {[%clk 0:02:55.7]} 17... Bxd5 {[%clk 0:02:57.2]} 18. Bxd5
{[%clk 0:02:53.4]} 18... Ne5 {[%clk 0:02:57.2]} 19. axb4 {[%clk 0:02:45]} 19...
Rxd5 {[%clk 0:02:54.5]} 20. Qe2 {[%clk 0:02:40.3]} 20... cxb4 {[%clk 0:02:54]}
21. Bf4 {[%clk 0:02:20.1]} 21... Nd3 {[%clk 0:02:45.4]} 22. Be3 {[%clk
0:02:03.6]} 22... Qc6 {[%clk 0:02:27.6]} 23. h4 {[%clk 0:02:00.4]} 23... Kb7
{[%clk 0:02:17.9]} 24. b3 {[%clk 0:01:41.1]} 24... cxb3 {[%clk 0:02:12.1]} 25.
Rfd1 {[%clk 0:01:35.5]} 25... Ne5 {[%clk 0:01:55.3]} 26. Rdb1 {[%clk 0:01:25.2]}
26... Ra5 {[%clk 0:01:50]} 27. f4 {[%clk 0:01:11.6]} 27... Nf3+ {[%clk
0:01:29.2]} 28. Kf2 {[%clk 0:01:09.4]} 28... Nxh4 {[%clk 0:01:26.4]} 29. gxh4
{[%clk 0:00:54.5]} 29... Rxh4 {[%clk 0:01:24.4]} 30. Kf1 {[%clk 0:00:29.6]}
30... Qh1+ {[%clk 0:01:11.9]} 31. Kf2 {[%clk 0:00:20.8]} 31... Rh2+ {[%clk
0:01:10]} 32. Kg3 {[%clk 0:00:19.9]} 32... Rxe2 {[%clk 0:01:04.7]} 33. Rxh1
{[%clk 0:00:19.8]} 33... Rxe3+ {[%clk 0:01:03.9]} 34. Kg4 {[%clk 0:00:20.3]}
34... Bd6 {[%clk 0:00:56]} 35. Rhb1 {[%clk 0:00:19.4]} 35... Rf5 {[%clk
0:00:53.8]} 36. Rf1 {[%clk 0:00:18.1]} 36... Re4 {[%clk 0:00:52.7]} 37. Nb2
{[%clk 0:00:18.1]} 37... Rexf4+ {[%clk 0:00:52]} 38. Rxf4 {[%clk 0:00:18.3]}
38... Rxf4+ {[%clk 0:00:51.5]} 39. Kg5 {[%clk 0:00:18.8]} 39... Rf5+ {[%clk
0:00:51.1]} 40. Kg4 {[%clk 0:00:18.4]} 40... Rxf6 {[%clk 0:00:48.2]} 41. Nd3
{[%clk 0:00:17.8]} 41... Kb6 {[%clk 0:00:48.1]} 42. Rb1 {[%clk 0:00:17.4]} 42...
Kb5 {[%clk 0:00:44.6]} 43. Rxb3 {[%clk 0:00:17.7]} 43... Kc4 {[%clk 0:00:44.2]}
44. Nc1 {[%clk 0:00:17.4]} 44... Rf1 {[%clk 0:00:43.1]} 45. Rb1 {[%clk 0:00:18]}
45... a5 {[%clk 0:00:41.8]} 46. Ra1 {[%clk 0:00:17.6]} 46... a4 {[%clk
0:00:41.2]} 47. Rb1 {[%clk 0:00:17.7]} 47... b3 {[%clk 0:00:39.6]} 48. Nxb3
{[%clk 0:00:17.7]} 48... Rxb1 {[%clk 0:00:38.7]} 49. Nd2+ {[%clk 0:00:18.6]}
49... Kd3 {[%clk 0:00:38.6]} 50. Nxb1 {[%clk 0:00:19.5]} 50... Kc2 {[%clk
0:00:38.8]} 51. Nc3 {[%clk 0:00:18.1]} 51... Kxc3 {[%clk 0:00:38.4]} 0-1

[Event "*** Titled Tuesday Blitz"]
[Site "Chess.com"]
[Date "2021.03.02"]
[Round "10"]
[White "kleopl"]
[Black "alexrustemov"]
[Result "1/2-1/2"]
[WhiteElo "2491"]
[BlackElo "2697"]
[TimeControl "180+1"]
[EndTime "11:58:29 PST"]
[Termination "Game drawn by repetition"]

1. c4 {[%clk 0:03:00.9]} 1... c5 {[%clk 0:02:59.4]} 2. Nf3 {[%clk 0:03:00.5]}
2... b6 {[%clk 0:02:56.2]} 3. d4 {[%clk 0:02:59.7]} 3... cxd4 {[%clk 0:02:55.9]}
4. Nxd4 {[%clk 0:03:00.6]} 4... Bb7 {[%clk 0:02:56.4]} 5. Nc3 {[%clk 0:03:00.4]}
5... Nf6 {[%clk 0:02:56.3]} 6. Bg5 {[%clk 0:02:58]} 6... e6 {[%clk 0:02:53]} 7.
f3 {[%clk 0:02:47.5]} 7... Be7 {[%clk 0:02:49.8]} 8. e4 {[%clk 0:02:46.2]} 8...
Nxe4 {[%clk 0:02:48.4]} 9. Bxe7 {[%clk 0:02:38.8]} 9... Nxc3 {[%clk 0:02:47.6]}
10. Bxd8 {[%clk 0:02:36.8]} 10... Nxd1 {[%clk 0:02:48]} 11. Rxd1 {[%clk
0:02:16.5]} 11... Kxd8 {[%clk 0:02:46.9]} 12. Nb5 {[%clk 0:02:17.1]} 12... Bc6
{[%clk 0:02:40.3]} 13. Nd6 {[%clk 0:02:17.1]} 13... Ke7 {[%clk 0:02:40.2]} 14.
b4 {[%clk 0:02:13.6]} 14... a6 {[%clk 0:02:33.9]} 15. Be2 {[%clk 0:02:00.4]}
15... Ra7 {[%clk 0:02:32.8]} 16. Kf2 {[%clk 0:01:57.9]} 16... Rc7 {[%clk
0:02:32.4]} 17. Rd2 {[%clk 0:01:50.6]} 17... Ba4 {[%clk 0:02:29.2]} 18. Rc1
{[%clk 0:01:47.9]} 18... b5 {[%clk 0:02:16.1]} 19. c5 {[%clk 0:01:42.9]} 19...
Nc6 {[%clk 0:02:13.6]} 20. a3 {[%clk 0:01:42.9]} 20... Rb8 {[%clk 0:02:11]} 21.
Bd3 {[%clk 0:01:29.2]} 21... g6 {[%clk 0:02:10]} 22. h4 {[%clk 0:01:22.2]} 22...
a5 {[%clk 0:02:06.5]} 23. Rb2 {[%clk 0:01:22.1]} 23... axb4 {[%clk 0:02:06.2]}
24. axb4 {[%clk 0:01:23]} 24... h6 {[%clk 0:02:01.5]} 25. Ra1 {[%clk 0:01:19.9]}
25... f5 {[%clk 0:01:56.2]} 26. f4 {[%clk 0:01:16.3]} 26... h5 {[%clk
0:01:54.6]} 27. g3 {[%clk 0:01:14.4]} 27... Nd8 {[%clk 0:01:54.3]} 28. Rd2
{[%clk 0:01:05.7]} 28... Nf7 {[%clk 0:01:53.3]} 29. Be2 {[%clk 0:01:05.2]} 29...
Nd8 {[%clk 0:01:36]} 30. Bf3 {[%clk 0:01:02.8]} 30... Ra7 {[%clk 0:01:33.1]} 31.
Re2 {[%clk 0:00:51.9]} 31... Nf7 {[%clk 0:01:32.1]} 32. Nxf7 {[%clk 0:00:49.1]}
32... Kxf7 {[%clk 0:01:31.7]} 33. Rd2 {[%clk 0:00:49.7]} 33... Ke7 {[%clk
0:01:30.6]} 34. Rd6 {[%clk 0:00:48]} 34... Rc7 {[%clk 0:01:23.9]} 35. Ra2 {[%clk
0:00:47.5]} 35... Bb3 {[%clk 0:01:22.6]} 36. Ra3 {[%clk 0:00:47.3]} 36... Bc4
{[%clk 0:01:21.4]} 37. Ra1 {[%clk 0:00:47.3]} 37... Re8 {[%clk 0:01:09.3]} 38.
Ke3 {[%clk 0:00:45.9]} 38... Kf7 {[%clk 0:01:08.8]} 39. Kd4 {[%clk 0:00:45.3]}
39... Kf6 {[%clk 0:01:04.7]} 40. Raa6 {[%clk 0:00:41.1]} 40... Ke7 {[%clk
0:00:56.5]} 41. Ke5 {[%clk 0:00:40.5]} 41... Rec8 {[%clk 0:00:55.7]} 42. Rdb6
{[%clk 0:00:34.5]} 42... Bd3 {[%clk 0:00:49.2]} 43. Ra3 {[%clk 0:00:32]} 43...
Bc4 {[%clk 0:00:43.9]} 44. Raa6 {[%clk 0:00:28.9]} 44... Bd3 {[%clk 0:00:43.7]}
45. Bg2 {[%clk 0:00:24.9]} 45... Be2 {[%clk 0:00:43.2]} 46. Ra2 {[%clk
0:00:21.7]} 46... Bc4 {[%clk 0:00:40.6]} 47. Ra5 {[%clk 0:00:21.7]} 47... Be2
{[%clk 0:00:36]} 48. Ra2 {[%clk 0:00:20.7]} 48... Bc4 {[%clk 0:00:35.6]} 49. Ra5
{[%clk 0:00:20.6]} 49... Be2 {[%clk 0:00:35.6]} 50. Ra2 {[%clk 0:00:20]} 1/2-1/2

[Event "*** Titled Tuesday Blitz"]
[Site "Chess.com"]
[Date "2021.03.02"]
[Round "10"]
[White "Ali-Farahat"]
[Black "eduardoperalta"]
[Result "0-1"]
[WhiteElo "2418"]
[BlackElo "2541"]
[TimeControl "180+1"]
[EndTime "11:58:30 PST"]
[Termination "eduardoperalta won on time"]

1. e4 {[%clk 0:03:00.9]} 1... c5 {[%clk 0:02:59.3]} 2. Nf3 {[%clk 0:03:00.5]}
2... Nc6 {[%clk 0:02:59.2]} 3. Bb5 {[%clk 0:02:59.9]} 3... g6 {[%clk 0:02:57.1]}
4. O-O {[%clk 0:02:59.8]} 4... Bg7 {[%clk 0:02:56.9]} 5. c3 {[%clk 0:03:00.2]}
5... Nf6 {[%clk 0:02:55.9]} 6. e5 {[%clk 0:03:00.4]} 6... Nd5 {[%clk 0:02:54.8]}
7. d4 {[%clk 0:03:00.6]} 7... cxd4 {[%clk 0:02:54.2]} 8. cxd4 {[%clk 0:03:01.5]}
8... O-O {[%clk 0:02:53.2]} 9. Nc3 {[%clk 0:03:01.8]} 9... Nxc3 {[%clk
0:02:48.8]} 10. bxc3 {[%clk 0:03:02.7]} 10... d6 {[%clk 0:02:48.4]} 11. exd6
{[%clk 0:03:03.6]} 11... exd6 {[%clk 0:02:49]} 12. Bg5 {[%clk 0:03:02.1]} 12...
Qa5 {[%clk 0:02:46.8]} 13. Qb3 {[%clk 0:02:51.1]} 13... Bg4 {[%clk 0:02:27.9]}
14. Nd2 {[%clk 0:02:51]} 14... a6 {[%clk 0:02:20.6]} 15. Bxc6 {[%clk 0:02:44.3]}
15... bxc6 {[%clk 0:02:19.7]} 16. Be7 {[%clk 0:02:41.4]} 16... Rfb8 {[%clk
0:02:17.6]} 17. Nc4 {[%clk 0:02:27.6]} 17... Qd5 {[%clk 0:02:09]} 18. Qa4 {[%clk
0:02:22]} 18... Be2 {[%clk 0:02:05.6]} 19. Ne3 {[%clk 0:02:15.5]} 19... Qe6
{[%clk 0:01:56.9]} 20. Rfe1 {[%clk 0:02:09]} 20... Bb5 {[%clk 0:01:54.3]} 21.
Qa3 {[%clk 0:02:04.6]} 21... Qxe7 {[%clk 0:01:52.9]} 22. c4 {[%clk 0:01:58.8]}
22... Bxd4 {[%clk 0:01:45.6]} 23. Rad1 {[%clk 0:01:57.5]} 23... Bc5 {[%clk
0:01:29.8]} 24. Qc3 {[%clk 0:01:54.5]} 24... Qe5 {[%clk 0:01:22.5]} 25. Qxe5
{[%clk 0:01:51.9]} 25... dxe5 {[%clk 0:01:22.6]} 26. cxb5 {[%clk 0:01:52]} 26...
axb5 {[%clk 0:01:18.2]} 27. Ng4 {[%clk 0:01:51.1]} 27... Rxa2 {[%clk 0:01:17.6]}
28. Rxe5 {[%clk 0:01:48.9]} 28... Bd4 {[%clk 0:01:05.6]} 29. Re4 {[%clk
0:01:37.8]} 29... c5 {[%clk 0:01:04.4]} 30. Rf4 {[%clk 0:01:29.8]} 30... f5
{[%clk 0:00:59.6]} 31. Ne3 {[%clk 0:01:22]} 31... Rba8 {[%clk 0:00:58.4]} 32. h4
{[%clk 0:01:21.2]} 32... Ra1 {[%clk 0:00:58]} 33. Rf1 {[%clk 0:01:18.9]} 33...
Bxe3 {[%clk 0:00:55]} 34. fxe3 {[%clk 0:01:18.3]} 34... Rxf1+ {[%clk 0:00:54.8]}
35. Rxf1 {[%clk 0:01:19.2]} 35... Ra3 {[%clk 0:00:51]} 36. Rc1 {[%clk
0:01:18.1]} 36... c4 {[%clk 0:00:50.5]} 37. Rb1 {[%clk 0:01:18]} 37... Rb3
{[%clk 0:00:49.9]} 38. Re1 {[%clk 0:01:13]} 38... c3 {[%clk 0:00:49.6]} 39. Kf2
{[%clk 0:01:12.3]} 39... b4 {[%clk 0:00:49.3]} 40. Ke2 {[%clk 0:01:12]} 40...
Rb2+ {[%clk 0:00:46]} 41. Kd3 {[%clk 0:01:11.9]} 41... Rxg2 {[%clk 0:00:45.4]}
42. Ra1 {[%clk 0:01:10.2]} 42... Kg7 {[%clk 0:00:43.4]} 0-1

[Event "*** Titled Tuesday Blitz"]
[Site "Chess.com"]
[Date "2021.03.02"]
[Round "10"]
[White "Bodnar_Mykola"]
[Black "paulrusan"]
[Result "0-1"]
[WhiteElo "2491"]
[BlackElo "2363"]
[TimeControl "180+1"]
[EndTime "11:58:31 PST"]
[Termination "paulrusan won on time"]

1. d4 {[%clk 0:03:00.9]} 1... Nf6 {[%clk 0:02:59.5]} 2. c4 {[%clk 0:03:00.9]}
2... g6 {[%clk 0:02:59.6]} 3. Nc3 {[%clk 0:03:00.8]} 3... Bg7 {[%clk 0:03:00.1]}
4. e4 {[%clk 0:03:01.4]} 4... d6 {[%clk 0:03:00.6]} 5. Be2 {[%clk 0:03:01.8]}
5... O-O {[%clk 0:03:01]} 6. Be3 {[%clk 0:03:02.4]} 6... c5 {[%clk 0:02:58.8]}
7. d5 {[%clk 0:03:00.2]} 7... b5 {[%clk 0:02:56.5]} 8. cxb5 {[%clk 0:02:58.7]}
8... a6 {[%clk 0:02:56.5]} 9. bxa6 {[%clk 0:02:58.7]} 9... Qa5 {[%clk
0:02:55.8]} 10. Qd2 {[%clk 0:02:52.1]} 10... Bxa6 {[%clk 0:02:52.4]} 11. Bxa6
{[%clk 0:02:52.1]} 11... Qxa6 {[%clk 0:02:52]} 12. Nge2 {[%clk 0:02:51.8]} 12...
Nbd7 {[%clk 0:02:52.1]} 13. O-O {[%clk 0:02:49.1]} 13... Rfb8 {[%clk 0:02:52.3]}
14. Rfb1 {[%clk 0:02:48.5]} 14... Ng4 {[%clk 0:02:50.7]} 15. Bg5 {[%clk
0:02:41]} 15... Kf8 {[%clk 0:02:45]} 16. a4 {[%clk 0:02:27.6]} 16... Rb4 {[%clk
0:02:30.6]} 17. Ra3 {[%clk 0:02:21.8]} 17... Rab8 {[%clk 0:02:09.1]} 18. b3
{[%clk 0:02:00.5]} 18... c4 {[%clk 0:02:03.2]} 19. Nb5 {[%clk 0:01:59.9]} 19...
Rxb3 {[%clk 0:01:58.4]} 20. Rbxb3 {[%clk 0:01:51.2]} 20... cxb3 {[%clk
0:01:58.3]} 21. Ned4 {[%clk 0:01:38.5]} 21... h6 {[%clk 0:01:41.8]} 22. Bh4
{[%clk 0:01:27.8]} 22... Nge5 {[%clk 0:01:32.3]} 23. Qb4 {[%clk 0:01:02.8]}
23... Nc5 {[%clk 0:01:23.6]} 24. Nxb3 {[%clk 0:01:01.7]} 24... Nxb3 {[%clk
0:00:38.7]} 25. Rxb3 {[%clk 0:00:58.9]} 25... g5 {[%clk 0:00:31.4]} 26. Bg3
{[%clk 0:00:57.8]} 26... Nd7 {[%clk 0:00:31.2]} 27. f3 {[%clk 0:00:41]} 27...
Kg8 {[%clk 0:00:31]} 28. Bf2 {[%clk 0:00:40.9]} 28... Rc8 {[%clk 0:00:27.7]} 29.
g3 {[%clk 0:00:37.7]} 29... Rc2 {[%clk 0:00:25.5]} 30. Nd4 {[%clk 0:00:30.4]}
30... Rc1+ {[%clk 0:00:21.2]} 31. Be1 {[%clk 0:00:06]} 31... Bxd4+ {[%clk
0:00:21.3]} 32. Kg2 {[%clk 0:00:05.9]} 32... Bc5 {[%clk 0:00:17.5]} 33. Qd2
{[%clk 0:00:04.1]} 33... Qc4 {[%clk 0:00:14.3]} 34. Rb2 {[%clk 0:00:01.7]} 34...
Bd4 {[%clk 0:00:12.5]} 0-1

[Event "*** Titled Tuesday Blitz"]
[Site "Chess.com"]
[Date "2021.03.02"]
[Round "10"]
[White "TheBigBoss04"]
[Black "TigrVShlyape"]
[Result "1-0"]
[WhiteElo "2769"]
[BlackElo "2887"]
[TimeControl "180+1"]
[EndTime "11:58:32 PST"]
[Termination "TheBigBoss04 won on time"]

1. e4 {[%clk 0:03:00.9]} 1... g6 {[%clk 0:02:53.7]} 2. d4 {[%clk 0:03:00.4]}
2... Bg7 {[%clk 0:02:53.1]} 3. Nc3 {[%clk 0:03:01]} 3... d6 {[%clk 0:02:53.3]}
4. Nf3 {[%clk 0:02:56.6]} 4... a6 {[%clk 0:02:53.1]} 5. Bd3 {[%clk 0:02:53.7]}
5... b5 {[%clk 0:02:53]} 6. a4 {[%clk 0:02:52.8]} 6... b4 {[%clk 0:02:51.9]} 7.
Ne2 {[%clk 0:02:52.9]} 7... Nd7 {[%clk 0:02:46.9]} 8. Ng3 {[%clk 0:02:51.9]}
8... a5 {[%clk 0:02:33.8]} 9. O-O {[%clk 0:02:50.9]} 9... e6 {[%clk 0:02:32.4]}
10. c3 {[%clk 0:02:47.5]} 10... bxc3 {[%clk 0:02:31]} 11. bxc3 {[%clk
0:02:47.1]} 11... Ba6 {[%clk 0:02:26.6]} 12. Bxa6 {[%clk 0:02:43.2]} 12... Rxa6
{[%clk 0:02:26.4]} 13. Qd3 {[%clk 0:02:43.8]} 13... Qa8 {[%clk 0:02:22]} 14. h4
{[%clk 0:02:39.3]} 14... Ngf6 {[%clk 0:02:05.5]} 15. h5 {[%clk 0:02:36.8]} 15...
Nxh5 {[%clk 0:01:46.6]} 16. Nxh5 {[%clk 0:02:35.9]} 16... gxh5 {[%clk
0:01:47.1]} 17. Rb1 {[%clk 0:02:19.3]} 17... O-O {[%clk 0:01:40]} 18. Rb5 {[%clk
0:02:14.8]} 18... c5 {[%clk 0:01:12]} 19. Bf4 {[%clk 0:02:04.2]} 19... Rc8
{[%clk 0:01:09.5]} 20. Rfb1 {[%clk 0:01:57.1]} 20... cxd4 {[%clk 0:01:05.8]} 21.
cxd4 {[%clk 0:01:56.1]} 21... Nf6 {[%clk 0:00:57.2]} 22. d5 {[%clk 0:01:30.2]}
22... exd5 {[%clk 0:00:35.9]} 23. exd5 {[%clk 0:01:28.4]} 23... Re8 {[%clk
0:00:33.4]} 24. Nh4 {[%clk 0:01:19.2]} 24... Ra7 {[%clk 0:00:30.2]} 25. Nf5
{[%clk 0:01:16.8]} 25... Ne4 {[%clk 0:00:16.8]} 26. Nxd6 {[%clk 0:00:53]} 26...
Nxd6 {[%clk 0:00:16.3]} 27. Bxd6 {[%clk 0:00:53.9]} 27... Rd7 {[%clk 0:00:03.9]}
28. Rb8 {[%clk 0:00:41.9]} 28... Rxd6 {[%clk 0:00:04.1]} 29. Rxa8 {[%clk
0:00:41.9]} 29... Rxa8 {[%clk 0:00:04.2]} 30. Rb5 {[%clk 0:00:41]} 30... Bf8
{[%clk 0:00:04.5]} 31. g3 {[%clk 0:00:34.1]} 31... Rg6 {[%clk 0:00:03.9]} 32.
Kf1 {[%clk 0:00:30.1]} 32... Bb4 {[%clk 0:00:03.4]} 33. Qf5 {[%clk 0:00:27.7]}
33... Rd8 {[%clk 0:00:01.7]} 34. Rb7 {[%clk 0:00:25.2]} 34... Rf8 {[%clk
0:00:01.6]} 35. Qxh5 {[%clk 0:00:24.4]} 35... h6 {[%clk 0:00:02]} 36. Qf5 {[%clk
0:00:22.5]} 36... Kg7 {[%clk 0:00:01.7]} 37. Qe5+ {[%clk 0:00:20.2]} 37... Kg8
{[%clk 0:00:01.7]} 38. Rd7 {[%clk 0:00:20.5]} 1-0

[Event "*** Titled Tuesday Blitz"]
[Site "Chess.com"]
[Date "2021.03.02"]
[Round "10"]
[White "zacachess"]
[Black "PushingpawnsNYC"]
[Result "1-0"]
[WhiteElo "2437"]
[BlackElo "2305"]
[TimeControl "180+1"]
[EndTime "11:58:32 PST"]
[Termination "zacachess won on time"]

1. e4 {[%clk 0:03:00.9]} 1... c5 {[%clk 0:02:54]} 2. Nf3 {[%clk 0:03:00.4]} 2...
e6 {[%clk 0:02:53.9]} 3. d4 {[%clk 0:03:00.9]} 3... cxd4 {[%clk 0:02:54.8]} 4.
Nxd4 {[%clk 0:03:01.6]} 4... a6 {[%clk 0:02:55.5]} 5. Nc3 {[%clk 0:03:02]} 5...
Bb4 {[%clk 0:02:54.8]} 6. Bd2 {[%clk 0:03:01.5]} 6... Qc7 {[%clk 0:02:52]} 7. g3
{[%clk 0:03:00.1]} 7... Nf6 {[%clk 0:02:49]} 8. Bg2 {[%clk 0:02:59.5]} 8... O-O
{[%clk 0:02:48.5]} 9. O-O {[%clk 0:02:58.9]} 9... Nc6 {[%clk 0:02:48.8]} 10. Nb3
{[%clk 0:02:58.8]} 10... d6 {[%clk 0:02:42.9]} 11. a3 {[%clk 0:02:58.9]} 11...
Bxc3 {[%clk 0:02:40.5]} 12. Bxc3 {[%clk 0:02:59.8]} 12... e5 {[%clk 0:02:39.9]}
13. h3 {[%clk 0:02:48.6]} 13... Be6 {[%clk 0:02:24.3]} 14. f4 {[%clk 0:02:47.3]}
14... Rac8 {[%clk 0:02:16.9]} 15. fxe5 {[%clk 0:02:34.2]} 15... Nxe5 {[%clk
0:02:10.9]} 16. Rxf6 {[%clk 0:02:26.5]} 16... gxf6 {[%clk 0:02:10]} 17. Qh5
{[%clk 0:02:26.1]} 17... Bxb3 {[%clk 0:02:03.3]} 18. cxb3 {[%clk 0:02:26]} 18...
Qb6+ {[%clk 0:02:03.3]} 19. Kh2 {[%clk 0:02:24.7]} 19... Qe3 {[%clk 0:01:40.5]}
20. h4 {[%clk 0:02:01.3]} 20... Rc5 {[%clk 0:01:23.3]} 21. b4 {[%clk 0:01:49.9]}
21... Rc4 {[%clk 0:01:09.1]} 22. Re1 {[%clk 0:01:36.1]} 22... Qd3 {[%clk
0:01:00.8]} 23. Rf1 {[%clk 0:01:17.6]} 23... Rxe4 {[%clk 0:00:55.6]} 24. Bxe4
{[%clk 0:00:51.9]} 24... Qxe4 {[%clk 0:00:51.5]} 25. Rf4 {[%clk 0:00:44.7]}
25... Qc2+ {[%clk 0:00:44.5]} 26. Kh3 {[%clk 0:00:44.1]} 26... Ng6 {[%clk
0:00:43]} 27. Rf3 {[%clk 0:00:33.7]} 27... Qd1 {[%clk 0:00:37.4]} 28. Bxf6
{[%clk 0:00:29.4]} 28... Qh1+ {[%clk 0:00:31.8]} 29. Kg4 {[%clk 0:00:29.3]}
29... Re8 {[%clk 0:00:22]} 30. Qh6 {[%clk 0:00:22]} 30... Re4+ {[%clk
0:00:21.6]} 31. Kg5 {[%clk 0:00:20.6]} 31... Qc1+ {[%clk 0:00:17.3]} 32. Rf4
{[%clk 0:00:21]} 32... Re5+ {[%clk 0:00:12.4]} 33. Kg4 {[%clk 0:00:21.2]} 33...
Qd1+ {[%clk 0:00:09.9]} 34. Rf3 {[%clk 0:00:18.5]} 34... Re4+ {[%clk 0:00:03.7]}
35. Kg5 {[%clk 0:00:17.7]} 35... Re5+ {[%clk 0:00:03.7]} 36. Bxe5 {[%clk
0:00:16.2]} 36... Nxe5 {[%clk 0:00:01.4]} 37. Rf4 {[%clk 0:00:14.7]} 1-0